{"text_format":"1","workbook":"xlsx","n_sheets":2,"sheets":["Konfigurointi","Projekti"],"not_rendered":{"charts":0,"images":0,"macros":1,"external_links":0,"defined_names":1,"comments":0,"pivot_tables":0},"unopened":[],"bounds":{"document_bytes":16777216,"sheet_cells":100000,"rows_first":2000,"rows_last":500,"rows_between":2000,"halvings":0,"cell_chars":16384,"cell_head_chars":4096},"cells_cut":0,"cells_raw":0,"read":"whole","date_system":"1900"}

{"sheet":"Konfigurointi","index":0,"n_rows":19,"n_cols":8,"rows_kept":19,"cut":false,"hidden":false,"merged":[[3,2,3,3]]}
["Laskenta"]
["Suurennus pois"]
["Ei pikkuruutuja"]
["Sarakkeet",null,"Hyödyt",null,null,"Kiinteät kustannukset",null,"Investoinnit"]
["Konseptit (sarakkeet)",null,"Hyöty","Kuvaus",null,"Kustannus",null,"Investointi"]
["Paletti",null,"Hinta","Mikä on vaikutus toimitussisällön omakustannushintaan kun toimitussisältö perustuu modulaariseen tuotteeseen?",null,"Ylläpito",null,"Laitehankinnat"]
["Rata",null,"Myynti ml. Sales engineering","Mikä on vaikutus myynnissä kun toimitussisältö ja hinta määritellään ja sovitaan konfiguroimalla ?",null,"Huolto",null,"Ulosmyynti"]
["Robotit",null,"Projektin hallinta","Mikä on vaikutus projektin suunnitteluun, hallintaan ja seurantaan kun toimitussisältö perustuu konfigurointiin?",null,"Tilavuokrat"]
[null,null,"Sopimukset","Mikä on vaikutus sopimuksiin kun toimitussisältö sovitaan konfiguroimalla?"]
[null,null,"Toimituskohtainen suunnittelu","Mikä on vaikutus toimituskohtaisessa suunnittelussa kun toimitussisältö perustuu modulaariseen tuotteeseen?"]
[null,null,"Dokumentaation tuottaminen","Mikä on vaikutus toimitussisällön dokumenttien laatimiseen kun toimitussisältö perustuu modulaariseen tuotteeseen?"]
[null,null,"Hankinnat","Mikä on vaikutus hankinnoissa kun toimitussisältö perustuu modulaariseen tuotteeseen?"]
[null,null,"Valmistus","Mikä on vaikutus valmistuksessa kun toimitussisältö perustuu modulaariseen tuotteeseen?"]
[null,null,"Osakokoonpano","Mikä on vaikutus osakokoonpanossa kun toimitussisältö perustuu modulaariseen tuotteeseen?"]
[null,null,"Testaus","Mikä on vaikutus testauksessa kun toimitussisältö perustuu modulaariseen tuotteeseen?"]
[null,null,"Logistiikka","Mikä on vaikutus logistiikassa kun toimitussisältö perustuu modulaariseen tuotteeseen?"]
[null,null,"On site","Mikä on vaikutus asennukseen ja käyttöönottoon kun toimitussisältö perustuu modulaariseen tuotteeseen?"]
[null,null,"Huolto, ylläpito, jälkimarkkinat","Mikä on vaikutus huollossa, ylläpidossa ja jälkimarkkinnoissa kun toimitussisältö perustuu modulaariseen tuotteeseen?"]
[null,null,"Laadunvarmistus","Mikä on vaikutus laadunvarmistuksessa kun toimitussisältö perustuu modulaariseen tuotteeseen?"]

{"sheet":"Projekti","index":1,"n_rows":54,"n_cols":11,"rows_kept":54,"cut":false,"hidden":false,"merged":[[0,0,0,6]]}
["Projektin otsikko!"]
[]
[]
[]
[]
[]
[]
[null,"Toimitusprojekti",null,null,"Paletti",null,"Rata",null,"Robotit",null,"Total"]
[null,null,"Hinta",null,null,null,null,null,null,null,{"$f":"SUM($E$9, $G$9, $I$9)","v":0}]
[null,null,"Mikä on vaikutus toimitussisällön omakustannushintaan kun toimitussisältö perustuu modulaariseen tuotteeseen?"]
[null,null,"Myynti ml. Sales engineering",null,null,null,null,null,null,null,{"$f":"SUM($E$11, $G$11, $I$11)","v":0}]
[null,null,"Mikä on vaikutus myynnissä kun toimitussisältö ja hinta määritellään ja sovitaan konfiguroimalla ?"]
[null,null,"Projektin hallinta",null,null,null,null,null,null,null,{"$f":"SUM($E$13, $G$13, $I$13)","v":0}]
[null,null,"Mikä on vaikutus projektin suunnitteluun, hallintaan ja seurantaan kun toimitussisältö perustuu konfigurointiin?"]
[null,null,"Sopimukset",null,null,null,null,null,null,null,{"$f":"SUM($E$15, $G$15, $I$15)","v":0}]
[null,null,"Mikä on vaikutus sopimuksiin kun toimitussisältö sovitaan konfiguroimalla?"]
[null,null,"Toimituskohtainen suunnittelu",null,null,null,null,null,null,null,{"$f":"SUM($E$17, $G$17, $I$17)","v":0}]
[null,null,"Mikä on vaikutus toimituskohtaisessa suunnittelussa kun toimitussisältö perustuu modulaariseen tuotteeseen?"]
[null,null,"Dokumentaation tuottaminen",null,null,null,null,null,null,null,{"$f":"SUM($E$19, $G$19, $I$19)","v":0}]
[null,null,"Mikä on vaikutus toimitussisällön dokumenttien laatimiseen kun toimitussisältö perustuu modulaariseen tuotteeseen?"]
[null,null,"Hankinnat",null,null,null,null,null,null,null,{"$f":"SUM($E$21, $G$21, $I$21)","v":0}]
[null,null,"Mikä on vaikutus hankinnoissa kun toimitussisältö perustuu modulaariseen tuotteeseen?"]
[null,null,"Valmistus",null,null,null,null,null,null,null,{"$f":"SUM($E$23, $G$23, $I$23)","v":0}]
[null,null,"Mikä on vaikutus valmistuksessa kun toimitussisältö perustuu modulaariseen tuotteeseen?"]
[null,null,"Osakokoonpano",null,null,null,null,null,null,null,{"$f":"SUM($E$25, $G$25, $I$25)","v":0}]
[null,null,"Mikä on vaikutus osakokoonpanossa kun toimitussisältö perustuu modulaariseen tuotteeseen?"]
[null,null,"Testaus",null,null,null,null,null,null,null,{"$f":"SUM($E$27, $G$27, $I$27)","v":0}]
[null,null,"Mikä on vaikutus testauksessa kun toimitussisältö perustuu modulaariseen tuotteeseen?"]
[null,null,"Logistiikka",null,null,null,null,null,null,null,{"$f":"SUM($E$29, $G$29, $I$29)","v":0}]
[null,null,"Mikä on vaikutus logistiikassa kun toimitussisältö perustuu modulaariseen tuotteeseen?"]
[null,null,"On site",null,null,null,null,null,null,null,{"$f":"SUM($E$31, $G$31, $I$31)","v":0}]
[null,null,"Mikä on vaikutus asennukseen ja käyttöönottoon kun toimitussisältö perustuu modulaariseen tuotteeseen?"]
[null,null,"Huolto, ylläpito, jälkimarkkinat",null,null,null,null,null,null,null,{"$f":"SUM($E$33, $G$33, $I$33)","v":0}]
[null,null,"Mikä on vaikutus huollossa, ylläpidossa ja jälkimarkkinnoissa kun toimitussisältö perustuu modulaariseen tuotteeseen?"]
[null,null,"Laadunvarmistus",null,null,null,null,null,null,null,{"$f":"SUM($E$35, $G$35, $I$35)","v":0}]
[null,null,"Mikä on vaikutus laadunvarmistuksessa kun toimitussisältö perustuu modulaariseen tuotteeseen?"]
[null,null,"Uusi hyöty",null,null,null,null,null,null,null,{"$f":"SUM($E$37, $G$37, $I$37)","v":0}]
[null,null,"Mistä hyöty tulee?"]
[]
[null,"Arvontuotto ja kiinteät kulut"]
[null,null,"Ylläpito",null,null,null,null,null,null,null,{"$f":"SUM($E$41, $G$41, $I$41)","v":0}]
[null,null,"Huolto",null,null,null,null,null,null,null,{"$f":"SUM($E$42, $G$42, $I$42)","v":0}]
[null,null,"Tilavuokrat",null,null,null,null,null,null,null,{"$f":"SUM($E$43, $G$43, $I$43)","v":0}]
[null,null,"Uusi arvontuotto tai kulu",null,null,null,null,null,null,null,{"$f":"SUM($E$44, $G$44, $I$44)","v":0}]
[]
[null,null,"TOTAL maximum  yearly BENEFITS",null,{"$f":"SUM($E$9:$E$45)","v":0},null,{"$f":"SUM($G$9:$G$45)","v":0},null,{"$f":"SUM($I$9:$I$45)","v":0},null,{"$f":"SUM($E$46,$G$46,$I$46)","v":0}]
[]
[null,"Investoinnit"]
[null,null,"Laitehankinnat",null,null,null,null,null,null,null,{"$f":"SUM($E$49, $G$49, $I$49)","v":0}]
[null,null,"Ulosmyynti",null,null,null,null,null,null,null,{"$f":"SUM($E$50, $G$50, $I$50)","v":0}]
[null,null,"Uusi investointi",null,null,null,null,null,null,null,{"$f":"SUM($E$51, $G$51, $I$51)","v":0}]
[]
[null,null,"TOTAL Investment",null,{"$f":"SUM($E$49:$E$52)","v":0},null,{"$f":"SUM($G$49:$G$52)","v":0},null,{"$f":"SUM($I$49:$I$52)","v":0},null,{"$f":"SUM($E$53, $G$53, $I$53)","v":0}]
[null,null,"ROI",null,{"$f":"$E$46/$E$53","v":{"$error":"#DIV/0!"}},null,{"$f":"$G$46/$G$53","v":{"$error":"#DIV/0!"}},null,{"$f":"$I$46/$I$53","v":{"$error":"#DIV/0!"}},null,{"$f":"SUM($E$54, $G$54, $I$54)","v":{"$error":"#DIV/0!"}}]